[Event "45th FIDE Womens Olympiad 2024"]
[Site "Budapest"]
[Date "2024.09.19"]
[Round "8.1"]
[White "Kashlinskaya, Alina"]
[Black "Dronavalli, Harika"]
[Result "1-0"]
[ECO "D50"]
[WhiteElo "2490"]
[BlackElo "2502"]
[Annotator "TA"]
[PlyCount "135"]
[EventDate "2024.09.05"]
[EventType "team-tourn"]
[EventCountry "HUN"]
[SourceTitle "playchess.com"]
[Source "ChessBase"]
[SourceQuality "1"]
[WhiteTeam "Poland"]
[BlackTeam "India"]
[WhiteTeamCountry "POL"]
[BlackTeamCountry "IND"]
[TimeControl "40/5400+30:1800+30"]

{[%evp 59,135,19,7,10,43,54,143,129,167,158,172,179,203,204,210,219,269,281,314,253,211,158,161,152,148,145,141,142,173,175,185,171,170,155,360,369,363,337,439,437,435,435,436,125,123,114,136,136,164,77,77,77,1394,1394,1387,1401,1456,1438,1602,1418,5089,1380,29958,29962,29973,29974,29971,29974,29969,29971,29968,29969,29980,29981,29981,29982,29982,29983]} 1. d4 {[%emt 0:00:03]} d5 {[%emt 0:00:08]} 2. c4 {[%emt 0:00:05]} e6 {[%emt 0:00:06]} 3. Nc3 {[%emt 0:00:10]} Nf6 {[%emt 0:00:09]} 4. Nf3 {[%emt 0:00:07]} c5 {[%emt 0:00:14]} 5. cxd5 {[%emt 0:00:16]} cxd4 {[%emt 0:00:27]} 6. Qxd4 {[%emt 0:00:21]} exd5 {[%emt 0:00:22]} 7. Bg5 {[%emt 0:00:21]} Be7 {[%emt 0:00:31]} 8. e3 {[%emt 0:00:11]} O-O {[%emt 0:00:39] D50: Queen's Gambit Declined: Dutch-Peruvian Gambit.} 9. Rd1 {[%emt 0:01:02]} Nc6 {[%emt 0:02:43]} 10. Qa4 {[%emt 0:00:48]} Bb4 {[%emt 0:04:06] seems to push 10...Be6 aside.} 11. Bb5 {[%emt 0:12:44]} h6 {[%emt 0:04:28]} 12. Bh4 {[%emt 0:09:33]} g5 {[%emt 0:05:10]} 13. Bxc6 {[%emt 0:08:44]} Bxc3+ {[%emt 0:02:26]} 14. bxc3 {[%emt 0:00:04]} bxc6 {[%emt 0:00:26]} 15. Bg3 {[%emt 0:07:13]} Ne4 {[%emt 0:12:32]} 16. Qxc6 {[%emt 0:00:55]} Be6 {[%emt 0:19:27]} 17. Be5 $146 {[%emt 0:01:33]} ({Predecessor:} 17. O-O Rc8 18. Qa6 Nxc3 19. Rd2 Qb6 20. Qxb6 axb6 21. Rb2 b5 22. Nd4 Rc4 23. Nxb5 Nxb5 24. Rxb5 {1-0 Khismatullin,D (2594)-Deac,B (2700) Titled Tuesday intern op 14th Mar Late blitz 2023 (7)}) 17... Qc8 {[%emt 0:03:31]} 18. Nd4 {[%emt 0:19:21]} Nxc3 {[%emt 0:09:12]} 19. Rd2 {[%emt 0:00:19]} Ne4 {[%emt 0:07:31]} 20. Rc2 {[%emt 0:00:22]} Qxc6 {[%emt 0:01:10]} 21. Nxc6 {[%emt 0:05:37]} f6 {[%emt 0:00:30]} 22. Bd4 {[%emt 0:04:40]} Rf7 {[%emt 0:01:02]} 23. O-O {[%emt 0:00:45]} a6 {[%emt 0:07:27]} 24. Rfc1 {[%emt 0:02:55]} Nd6 {[%emt 0:00:31]} 25. Bc5 {[%emt 0:00:33]} Nf5 {[%emt 0:02:33]} 26. g4 {[%emt 0:06:37]} Bd7 {[%emt 0:03:31]} 27. Ba3 {[%emt 0:00:28]} Nh4 {[%emt 0:02:28]} 28. Ne7+ {[%emt 0:02:39]} Kg7 {[%emt 0:02:22]} 29. h3 {[%emt 0:01:44]} h5 {[%emt 0:03:14]} 30. Nxd5 {[%emt 0:01:33]} hxg4 {[%emt 0:00:17]} 31. Nb6 {[%emt 0:03:34]} Nf3+ {[%emt 0:00:30]} 32. Kg2 {[%emt 0:00:07]} Nh4+ {[%emt 0:00:10]} ({Better is} 32... Bf5 $1 $14) 33. Kh2 $1 $16 {[%emt 0:02:42]} Rd8 {[%emt 0:02:51]} 34. Nxd7 {[%emt 0:00:26]} Rfxd7 {[%emt 0:01:48]} 35. hxg4 {[%emt 0:00:02]} Kg6 {[%emt 0:00:46]} 36. Kg3 {[%emt 0:01:29]} Rd1 {[%emt 0:00:20]} 37. Bb2 {[%emt 0:02:32]} Rxc1 {[%emt 0:00:31]} 38. Rxc1 {[%emt 0:00:05]} (38. Bxc1 Rd1 $11) 38... Rd6 {[%emt 0:00:33]} 39. a4 {[%emt 0:02:47]} f5 {[%emt 0:00:15]} 40. gxf5+ {[%emt 0:03:42]} Nxf5+ {[%emt 0:00:04]} 41. Kf3 {[%emt 0:01:40]} Rd2 {[%emt 0:02:20]} 42. Be5 {[%emt 0:05:31]} Nh4+ {[%emt 0:06:31]} 43. Kg4 {[%emt 0:01:13]} Rxf2 {[%emt 0:00:08]} 44. Rc6+ {[%emt 0:00:07]} Kf7 {[%emt 0:04:46]} 45. Rxa6 {[%emt 0:00:14]} Rg2+ {[%emt 0:02:13]} 46. Kh5 {[%emt 0:01:58]} Re2 $2 {[%emt 0:03:11]} (46... Ke7 $16 {was worth a try.} 47. Bf6+ Kd7 48. Bxg5 Nf5) 47. Bd4 $1 $18 {[%emt 0:00:56]} (47. Kxg5 Nf3+ 48. Kf5 Nxe5 $11) 47... Ng2 {[%emt 0:00:08] [#]} 48. Kg4 $1 {[%emt 0:09:40]} (48. Kxg5 Nxe3 49. a5 Nc4 $11) 48... Re1 {[%emt 0:02:19]} 49. Rf6+ {[%emt 0:05:00]} (49. Kxg5 Nxe3 50. Rc6 Nd5 $11) 49... Ke7 {[%emt 0:04:05]} 50. Rf3 {[%emt 0:00:01]} (50. Kxg5 Nxe3 51. Bc5+ Kd7 $11) 50... Rg1 {[%emt 0:02:45]} 51. Kh5 $2 {[%emt 0:04:25]} (51. Kxg5 Ne1+ 52. Kf4 Nxf3 53. Kxf3 Rg5 $11) (51. Rg3 $18 Nxe3+ 52. Bxe3) 51... Ne1 $16 {[%emt 0:03:03]} 52. Rf5 {[%emt 0:00:13]} Nc2 {[%emt 0:00:54] [#]} 53. Bb6 $1 {[%emt 0:01:59]} (53. Rxg5 $6 Rh1+ 54. Kg4 Nxd4 $11) 53... g4 {[%emt 0:02:15]} 54. e4 {[%emt 0:01:49]} (54. a5 $18 {and White stays clearly on top. a6 is the strong threat.} g3 55. e4 Rh1+ 56. Kg6) 54... Re1 $16 {[%emt 0:02:53]} 55. a5 {[%emt 0:00:34]} (55. Kxg4 Rxe4+ 56. Rf4 Ne3+ 57. Kg3 Rxf4 58. Bc5+ (58. Kxf4 Nd5+ 59. Ke4 Nxb6 $11) 58... Kd7 59. Kxf4 Nc4 $11) 55... g3 $2 {[%emt 0:00:16][%mdl 8192]} (55... Ne3 $16 56. Bc5+ (56. Rg5 Nc4 $11) 56... Kd7) 56. a6 $18 {[%emt 0:00:19]} g2 {[%emt 0:00:36]} 57. Rg5 {[%emt 0:00:34]} Rh1+ {[%emt 0:02:11]} 58. Kg6 {[%emt 0:00:01]} Ra1 {[%emt 0:00:18]} 59. a7 {[%emt 0:00:13]} (59. Rxg2 Rxa6 60. Rxc2 Rxb6+ 61. Kf5 Rh6 $11) 59... Ne1 {[%emt 0:01:04]} 60. Kh7 {[%emt 0:00:01]} (60. Kf5 $142 Nf3 61. Rg8 (61. Rxg2 Nh4+ 62. Kg4 Nxg2 $11) 61... Nh4+ 62. Kf4 Rf1+ 63. Ke5 Nf3+ 64. Kd5 Rd1+ 65. Kc6 Ne5+ 66. Kb7) 60... Kd7 {[%emt 0:00:52]} 61. Rg8 {[%emt 0:00:36]} Kc6 {[%emt 0:00:12]} 62. Bd4 {[%emt 0:00:54]} (62. a8=B+ $2 {too greedy.} Kxb6 63. Bd5 Ra3 $19) 62... Ra3 {[%emt 0:00:33]} 63. a8=Q+ {[%emt 0:00:15]} Rxa8 {[%emt 0:00:02]} 64. Rxa8 {[%emt 0:00:04]} Nf3 {[%emt 0:00:02]} 65. Be3 {[%emt 0:00:21]} g1=Q {[%emt 0:00:06]} 66. Bxg1 {[%emt 0:00:04]} Nxg1 {[%emt 0:00:02]} 67. Kg6 {[%emt 0:00:30]} Nf3 {[%emt 0:00:16]} 68. Kf6 {[%emt 0:00:11]} 1-0

[Event "45th FIDE Womens Olympiad 2024"]
[Site "Budapest"]
[Date "2024.09.19"]
[Round "8.2"]
[White "Vaishali, Rameshbabu"]
[Black "Socko, Monika"]
[Result "0-1"]
[ECO "B12"]
[WhiteElo "2498"]
[BlackElo "2422"]
[Annotator "TA"]
[PlyCount "82"]
[EventDate "2024.09.05"]
[EventType "team-tourn"]
[EventCountry "HUN"]
[SourceTitle "playchess.com"]
[Source "ChessBase"]
[SourceQuality "1"]
[WhiteTeam "India"]
[BlackTeam "Poland"]
[WhiteTeamCountry "IND"]
[BlackTeamCountry "POL"]
[TimeControl "40/5400+30:1800+30"]

{[%evp 9,82,5,8,13,10,0,0,16,15,12,24,19,19,16,39,5,2,-14,7,2,16,0,12,0,20,18,53,47,51,56,70,68,70,72,78,0,0,0,0,0,0,0,0,-58,-62,-61,0,-4,-4,-9,-11,-11,-4,-3,0,-6,-5,-76,-76,-74,-74,-71,-75,-142,-143,-129,-135,-237,-172,-257,-250,-5106,-5106,-4698,-4140]} 1. e4 {[%emt 0:00:14]} c6 {[%emt 0:00:05]} 2. d4 {[%emt 0:00:05]} d5 {[%emt 0:00:03]} 3. e5 {[%emt 0:00:04]} c5 {[%emt 0:00:03]} 4. Nf3 {[%emt 0:00:24]} cxd4 {[%emt 0:00:05]} 5. Nxd4 {[%emt 0:00:15]} Nc6 {[%emt 0:00:09]} 6. Nxc6 {[%emt 0:00:22]} bxc6 {[%emt 0:00:04]} 7. Bd3 {[%emt 0:00:52]} e6 {[%emt 0:00:12]} 8. O-O {[%emt 0:01:32] The position is equal.} Ne7 {[%emt 0:00:10]} 9. Nd2 {[%emt 0:01:21]} Ng6 {[%emt 0:00:57]} 10. Nf3 {[%emt 0:00:25]} Be7 {[%emt 0:02:02]} 11. c3 {[%emt 0:15:48]} O-O {[%emt 0:00:53]} 12. Re1 {[%emt 0:00:53]} c5 {[%emt 0:07:20]} 13. Qa4 {[%emt 0:09:52]} Bb7 {[%emt 0:07:25][%cal Od5d4]} 14. Qg4 {[%emt 0:01:29]} d4 {[%emt 0:09:11]} 15. c4 {[%emt 0:04:01]} a5 {[%emt 0:12:47]} 16. Re2 {[%emt 0:14:05]} Ra6 {[%emt 0:04:49]} 17. Ng5 {[%emt 0:03:45]} Qc7 {[%emt 0:11:29]} 18. h4 {[%emt 0:14:44][%cal Og5h7]} Bxg5 {[%emt 0:06:04]} (18... Nxe5 $2 19. Bxh7+ Kh8 20. Rxe5 Qxe5 21. Bf4 $18) 19. Bxg5 {[%emt 0:01:54]} Nxe5 {[%emt 0:05:32]} 20. Qg3 {[%emt 0:00:05]} f6 {[%emt 0:00:04][%cal Oc7f7] Threatens to win with ...Qf7!} 21. Bf4 $1 {[%emt 0:03:14]} ({Much worse is} 21. Bxf6 Nf3+ 22. gxf3 Qxg3+ 23. fxg3 gxf6 $11) 21... Rb6 {[%emt 0:02:13]} 22. h5 {[%emt 0:01:22]} (22. b3 $16) 22... Qf7 $1 $11 {[%emt 0:01:39]} 23. Bxe5 {[%emt 0:12:50]} fxe5 {[%emt 0:00:07]} 24. b3 {[%emt 0:00:22]} ({Don't play} 24. Qxe5 Bxg2 25. Kxg2 Qf3+ 26. Kh2 Qxd3 $17) 24... e4 {[%emt 0:05:46]} ({Worse is} 24... Qxh5 25. Rxe5 (25. Qxe5 Qg4 $11) 25... Qh6 26. Rxc5 $16) 25. Bxe4 {[%emt 0:00:01]} Qxh5 {[%emt 0:02:33]} 26. Rae1 {[%emt 0:01:13]} (26. Bd3 $11) 26... Bxe4 $15 {[%emt 0:00:50]} 27. Rxe4 {[%emt 0:00:02] [#]} a4 {[%emt 0:01:29]} 28. Re5 {[%emt 0:05:26]} Qf7 {[%emt 0:00:45]} 29. Rxc5 {[%emt 0:01:30]} axb3 {[%emt 0:00:10]} 30. axb3 {[%emt 0:00:07] [#]} Rxb3 $1 {[%emt 0:00:25]} 31. f3 $1 {[%emt 0:00:01]} d3 {[%emt 0:06:59]} 32. Qd6 {[%emt 0:02:21]} Qf6 $36 {[%emt 0:00:47][%mdl 2048] ...Rd8 would now be deadly. White is under pressure.} 33. Rd1 {[%emt 0:02:56]} (33. Rce5 $11 {remains equal.}) 33... Rd8 $17 {[%emt 0:02:13]} 34. Qe5 {[%emt 0:00:21]} Qxe5 {[%emt 0:04:30]} 35. Rxe5 {[%emt 0:00:02][%mdl 4096] Endgame. KRR-KRR} Kf7 {[%emt 0:00:41]} 36. Rc5 {[%emt 0:02:43]} (36. Rd2 $142) 36... Rb2 {[%emt 0:00:49]} 37. Rc7+ {[%emt 0:01:39]} Kf6 {[%emt 0:00:05] Black is more active.} 38. Kh2 {[%emt 0:00:37]} (38. c5 $17) 38... Rc2 {[%emt 0:01:39] Strongly threatening ...d2.} 39. Kg3 {[%emt 0:00:23]} (39. c5 $142) 39... h5 $19 {[%emt 0:03:48][%cal Oh5h4] Hoping for ...h4+!} 40. Rc5 $2 {[%emt 0:00:37] [#]} (40. f4) 40... h4+ $1 {[%emt 0:00:58][%mdl 512]} 41. Kxh4 {[%emt 0:12:06]} d2 {[%emt 0:01:59] Weighted Error Value: White=0.36/Black=0.09 (flawless) .  Mistake:       	White=7     	Black=1      Inaccurate:     	White=1     	Black=1      OK:         	White=15    	Black=16     Best:        	---       	Black=1      Strong:       	White=2     	Black=1      Brilliant:      	---       	Black=1} 0-1

[Event "45th FIDE Womens Olympiad 2024"]
[Site "Budapest"]
[Date "2024.09.19"]
[Round "8.2"]
[White "Thomas, Nelissa"]
[Black "Zenobia Wasif"]
[Result "1-0"]
[ECO "A45"]
[WhiteElo "1631"]
[BlackElo "1743"]
[PlyCount "137"]
[EventDate "2024.09.05"]
[EventType "team-tourn"]
[EventCountry "HUN"]
[WhiteTeam "Bahamas"]
[BlackTeam "Pakistan"]
[WhiteTeamCountry "BAH"]
[BlackTeamCountry "PAK"]
[TimeControl "40/5400+30:1800+30"]

1. d4 Nf6 2. e3 g6 3. Bd3 Bg7 4. f4 e6 5. Nf3 d5 6. O-O O-O 7. Ne5 Nbd7 8. Nd2 Nxe5 9. dxe5 Nd7 10. c3 c5 11. Nf3 c4 12. Bc2 Nc5 13. g4 f6 14. exf6 Qxf6 15. g5 Qe7 16. Nh4 Qe8 17. Nf3 e5 18. Qxd5+ Ne6 19. Nxe5 Kh8 20. Nxc4 Bd7 21. Qg2 Bb5 22. b3 Bxc4 23. bxc4 Bxc3 24. Rb1 b6 25. f5 gxf5 26. Bxf5 Nxg5 27. Kh1 Qh5 28. Bb2 Bg7 29. Bxg7+ Kxg7 30. e4 Rad8 31. Rg1 Kh6 32. Bxh7 Rf7 33. Bf5 Rg7 34. Qg4 Qxg4 35. Rxg4 Nf3 36. Rxg7 Kxg7 37. Kg2 Nh4+ 38. Kg3 Nxf5+ 39. exf5 Kf6 40. Rf1 Rd4 41. Rf4 Rd2 42. a4 Rc2 43. h4 Rc1 44. Kf3 Rc3+ 45. Kg4 Rc1 46. Kf3 Ke5 47. Ke3 Rc3+ 48. Kd2 Rh3 49. f6 Rh2+ 50. Ke3 Rh3+ 51. Rf3 Rxf3+ 52. Kxf3 Kxf6 53. h5 Kg5 54. Ke4 Kxh5 55. Kd5 Kg6 56. Kc6 Kf6 57. Kb7 Ke5 58. Kxa7 Kd4 59. Kxb6 Kxc4 60. a5 Kd5 61. a6 Kd6 62. a7 Kd7 63. a8=Q Kd6 64. Qe4 Kd7 65. Qc6+ Ke7 66. Kc5 Kf7 67. Kd5 Ke7 68. Qe6+ Kd8 69. Qf7 1-0

[Event "45th FIDE Womens Olympiad 2024"]
[Site "Budapest"]
[Date "2024.09.19"]
[Round "8.3"]
[White "Maltsevskaya, Aleksandra"]
[Black "Divya Deshmukh"]
[Result "0-1"]
[ECO "A30"]
[WhiteElo "2404"]
[BlackElo "2483"]
[Annotator "TA"]
[PlyCount "128"]
[EventDate "2024.09.05"]
[EventType "team-tourn"]
[EventCountry "HUN"]
[SourceTitle "playchess.com"]
[Source "ChessBase"]
[SourceQuality "1"]
[WhiteTeam "Poland"]
[BlackTeam "India"]
[WhiteTeamCountry "POL"]
[BlackTeamCountry "IND"]
[TimeControl "40/5400+30:1800+30"]

{[%evp 46,128,70,0,0,0,0,0,0,0,0,0,-4,-238,-235,-252,-257,-240,-235,-265,-174,-340,-326,-326,-326,-326,-293,-326,-318,-291,-249,-283,-267,-259,0,-233,0,-289,-289,-289,-289,-353,-402,-508,-504,-695,-547,-763,-672,-772,-772,-758,-750,-1110,-1029,-29968,-29971,-29963,-29963,-29976,-984,-29975,-29962,-29982,-29980,-29980,-29981,-29980,-29979,-29981,-29980,-29985,-29986,-29986,-29987,-29995,-29988,-29990,-29991,-29995,-29996,-29996,-29997,-29997,-412]} 1. Nf3 {[%emt 0:00:05]} Nf6 {[%emt 0:00:17]} 2. c4 {[%emt 0:00:10]} c5 {[%emt 0:00:04]} 3. g3 {[%emt 0:01:53]} Nc6 {[%emt 0:00:27]} 4. Bg2 {[%emt 0:00:47]} d6 {[%emt 0:00:12]} 5. d4 {[%emt 0:06:14]} cxd4 {[%emt 0:04:07]} 6. Nxd4 {[%emt 0:00:06] A30: Symmetrical English: Double Fianchetto and Hedgehog.} Bd7 {[%emt 0:00:04]} 7. O-O {[%emt 0:03:09] 7.0-0 is better than 7.Nc3.} g6 {[%emt 0:01:40]} 8. b3 {[%emt 0:02:07]} Bg7 {[%emt 0:01:29]} 9. Bb2 {[%emt 0:00:08]} h5 {[%emt 0:00:15]} 10. Nc3 {[%emt 0:07:33]} h4 {[%emt 0:00:27]} 11. Nxc6 {[%emt 0:17:53] was the old line (11.Nd5).} Bxc6 {[%emt 0:03:35]} 12. Nd5 {[%emt 0:03:17]} Bxd5 {[%emt 0:03:51]} 13. cxd5 {[%emt 0:05:39]} hxg3 {[%emt 0:22:30]} 14. hxg3 {[%emt 0:00:07]} Qa5 $146 {[%emt 0:08:08]} ({Predecessor:} 14... Rc8 15. Qd2 Qd7 16. Rac1 O-O 17. Bxf6 Bxf6 18. Rxc8 Rxc8 19. Rc1 {½-½ Van der Sterren,P (2550)-Lerner,K (2575) Bundesliga 9899 1998 (2.2)}) 15. Qd3 {[%emt 0:05:11]} O-O {[%emt 0:01:40]} 16. a4 {[%emt 0:11:12]} Rfc8 {[%emt 0:10:50]} 17. Rfc1 {[%emt 0:01:01]} Rab8 {[%emt 0:08:01]} 18. Bf3 {[%emt 0:14:53]} a6 {[%emt 0:19:16]} 19. Kg2 {[%emt 0:00:15]} Rxc1 {[%emt 0:03:11]} 20. Rxc1 {[%emt 0:00:06]} b5 {[%emt 0:00:03]} 21. Bc3 {[%emt 0:05:07]} Qd8 {[%emt 0:00:37]} 22. Bd4 {[%emt 0:01:59]} bxa4 {[%emt 0:02:09]} 23. bxa4 {[%emt 0:00:05]} Qa5 {[%emt 0:00:54]} 24. Rc4 {[%emt 0:08:48]} (24. Ba7 $14 Rf8 25. Qc4) 24... Nd7 $11 {[%emt 0:00:58]} 25. Bxg7 {[%emt 0:01:55]} Kxg7 {[%emt 0:00:01]} 26. Qe3 {[%emt 0:00:07]} Ne5 {[%emt 0:00:43]} 27. Rh4 {[%emt 0:00:06]} Rh8 {[%emt 0:00:05]} 28. Rxh8 {[%emt 0:03:07]} Kxh8 {[%emt 0:00:01]} 29. Be4 $2 {[%emt 0:01:02]} (29. Qd4 $11 {and White stays safe.}) 29... Qxa4 $19 {[%emt 0:01:08]} 30. f4 {[%emt 0:00:08]} Ng4 {[%emt 0:01:28]} 31. Qc3+ {[%emt 0:00:11]} Nf6 {[%emt 0:01:03]} 32. Bf3 {[%emt 0:00:42]} Kh7 {[%emt 0:01:28]} 33. f5 $2 {[%emt 0:01:04]} (33. Qe3 {might work better.}) 33... g5 {[%emt 0:00:31]} 34. Kh2 {[%emt 0:00:50]} Qd7 {[%emt 0:02:55]} 35. Qe3 {[%emt 0:00:22]} g4 {[%emt 0:01:25]} (35... Qxf5 36. Qxe7 Qg6 (36... Nxd5 37. Qe4 $18) 37. Kg1 $17 (37. Qxd6 $2 Ng4+ 38. Bxg4 Qxd6 $19)) 36. Bg2 {[%emt 0:00:07]} Qc7 {[%emt 0:01:25]} (36... Qxf5 37. Qxe7 Qg6 (37... Nxd5 $2 38. Qe4 $18) 38. Qxd6 $11) 37. Qg5 {[%emt 0:00:49]} Qc8 {[%emt 0:01:15]} 38. Qh4+ {[%emt 0:00:27]} Kg7 {[%emt 0:00:01]} 39. Qg5+ {[%emt 0:00:07]} Kh7 {[%emt 0:00:39]} 40. Qh4+ {[%emt 0:00:47]} Kg7 {[%emt 0:00:27]} 41. Qg5+ {[%emt 0:30:08]} Kf8 {[%emt 0:01:50]} 42. e4 {[%emt 0:00:00]} Ke8 {[%emt 0:04:39]} 43. Qf4 {[%emt 0:00:00]} Qc3 {[%emt 0:01:44]} 44. Qh6 {[%emt 0:00:00]} Nd7 {[%emt 0:02:53]} 45. Qg5 {[%emt 0:00:00]} Ne5 {[%emt 0:01:06]} 46. Qg8+ {[%emt 0:00:00]} Kd7 {[%emt 0:00:01]} 47. Qa8 {[%emt 0:00:00]} Qc8 {[%emt 0:00:27]} 48. Qa7+ {[%emt 0:00:00]} Ke8 {[%emt 0:00:07]} 49. Qf2 {[%emt 0:02:00]} f6 {[%emt 0:01:00]} 50. Qa2 {[%emt 0:00:29]} Kf7 {[%emt 0:02:16]} 51. Qd2 {[%emt 0:00:16]} Kg7 {[%emt 0:00:11]} 52. Qa2 {[%emt 0:00:16]} Qb7 {[%emt 0:01:13]} (52... Qc1 $142 53. Qf2 Kf7 54. Bh3 a5 (54... gxh3 55. Qf4 Qe1 56. g4 Qh4 57. Kg1 Nxg4 58. Kf1 h2 59. Ke2 h1=Q 60. Kd3 Qd1+ 61. Kc4 Qhe1 62. Qxg4 Qc2+ 63. Kd4 Qef2#) (54... Qh6 55. Kg1 Qxh3 56. Qe2 Qxg3+ 57. Kf1 Nd3 58. e5 fxe5 59. f6 Kxf6 60. Qd2 Qf3+ 61. Kg1 Nf4 62. Qc2 Ne2+ 63. Qxe2 Qxe2 64. Kh1 g3 65. Kg1 Qh2+ 66. Kf1 Qf2#) 55. Bf1 Nf3+ 56. Kg2 Qh6 57. Qxf3 gxf3+ 58. Kxf3 a4 59. e5 fxe5 60. Kg4 Qc1 61. Be2 a3 62. Kh3 a2 (62... Qh1+ 63. Kg4 a2 64. Kg5 a1=Q 65. Bh5+ Kg8 66. f6 Qac1+ 67. Kf5 Qxh5+ 68. Ke6 Qc7 69. fxe7 Qg6#) 63. Bh5+ Kf6 64. Bd1 a1=Q (64... a1=B 65. Bf3 Qf1+ 66. Bg2 Qxf5+ 67. g4 Qf2 68. Kh2 Kg5 69. Kh1 Qh4+ 70. Kg1 Bd4+ 71. Kf1 Qf2#) 65. g4 Qe3+ (65... Qxd1 66. Kg3 Qa3+ 67. Kh2 Qe2+ 68. Kh1 Qc1#) 66. Kg2 Qb2+ (66... Qxd1 $2 67. g5+ Qxg5+ 68. Kh3 Qdh5#) 67. Bc2 Qxc2+ 68. Kh1 Qe1#) 53. Qa5 {[%emt 0:02:34]} Kf7 {[%emt 0:03:32]} 54. Qd2 {[%emt 0:00:20]} Qb6 {[%emt 0:00:43]} 55. Qh6 {[%emt 0:00:11]} Kg8 {[%emt 0:02:30]} 56. Qh5 {[%emt 0:00:21]} Qb8 {[%emt 0:01:08]} 57. Kh1 {[%emt 0:01:10]} Kg7 {[%emt 0:00:10]} 58. Kg1 {[%emt 0:00:22]} a5 {[%emt 0:00:20]} 59. Bf1 {[%emt 0:01:32]} a4 {[%emt 0:00:19]} 60. Bc4 {[%emt 0:00:30]} a3 {[%emt 0:03:02]} (60... Nxc4 61. Qg6+ Kh8 62. Qh6+ Kg8 63. Qg6+ Kf8 64. Qh6+ Kg8 65. Qg6+ Kf8 66. Qh6+ Kg8 $11) 61. Ba2 {[%emt 0:00:06]} Qb2 {[%emt 0:00:22]} 62. Qe8 {[%emt 0:00:08]} Nf3+ {[%emt 0:00:12]} 63. Kf1 {[%emt 0:00:05]} Qc1+ {[%emt 0:00:07]} ({Weaker is} 63... Qxa2 64. Qxe7+ Kh8 (64... Kg8 65. Qe8+ Kh7 66. Qg6+ Kh8 67. Qxf6+ Kg8 68. Qd8+ Kf7 69. Qd7+ Kf8 70. Qd8+ Kf7 71. Qd7+ Kf8 72. Qd8+ Kf7 $11) 65. Qxf6+ (65. Qf8+ Kh7 $11) 65... Kg8 66. Qd8+ Kg7 67. Qe7+ Kg8 68. Qd8+ Kf7 69. Qd7+ Kf8 (69... Kg8 70. Qe8+ Kg7 71. Qe7+ Kg8 72. Qd8+ $11) 70. Qd8+ Kf7 71. Qd7+ Kf8 (71... Kg8 72. Qc8+ Kh7 73. Qd7+ Kg8 74. Qe6+ Kf8 75. Qc8+ Kg7 76. Qd7+ Kf8 77. Qc8+ Kf7 78. Qd7+ $11) 72. Qxd6+ Ke8 73. Qc6+ Ke7 74. Qc7+ Kf8 75. Qd8+ Kf7 76. Qd7+ Kf8 77. Qd6+ Ke8 78. Qe6+ Kd8 79. Qg8+ Kd7 80. Qe6+ Kd8 81. Qf6+ (81. Qg8+ Kd7 $11) 81... Ke8 82. Qe6+ Kf8 83. Qf6+ Kg8 84. Qe6+ Kf8 85. Qf6+ Kg8 86. Qg6+ Kf8 87. Qh6+ Kf7 88. Qe6+ Kf8 $11) 64. Ke2 {[%emt 0:00:08]} Qd2+ {[%emt 0:00:02]} 0-1

[Event "45th FIDE Womens Olympiad 2024"]
[Site "Budapest"]
[Date "2024.09.19"]
[Round "8.3"]
[White "Mehak Gul"]
[Black "Johnson, Daijah"]
[Result "1-0"]
[ECO "E62"]
[WhiteElo "1709"]
[BlackElo "1625"]
[PlyCount "33"]
[EventDate "2024.09.05"]
[EventType "team-tourn"]
[EventCountry "HUN"]
[WhiteTeam "Pakistan"]
[BlackTeam "Bahamas"]
[WhiteTeamCountry "PAK"]
[BlackTeamCountry "BAH"]
[TimeControl "40/5400+30:1800+30"]

1. d4 Nf6 2. Nf3 g6 3. g3 Bg7 4. Bg2 d6 5. c4 O-O 6. O-O c6 7. Nc3 Bg4 8. Qb3 Qc7 9. h3 Bxf3 10. Bxf3 Nbd7 11. Bg5 e5 12. dxe5 Nxe5 13. Bg2 Rad8 14. Ne4 Ned7 15. Qf3 Ne5 16. Nxf6+ Kh8 17. Qf4 1-0